[Event "February Lviv Tradition-IM 2020"]
[Site "Lviv"]
[Date "2020.02.19"]
[Round "5.1"]
[White "Roshka, Yevgeniy"]
[Black "Kowalski, Igor"]
[Result "1-0"]
[ECO "C03"]
[WhiteElo "2456"]
[BlackElo "2332"]
[Annotator "ChessBase"]
[PlyCount "97"]
[EventDate "2020.02.17"]
[EventType "tourn"]
[EventCountry "UKR"]
[SourceTitle "playchess.com"]
[Source "ChessBase"]
[SourceQuality "1"]
[TimeControl "5400+30"]

1. d4 {[%emt 0:00:00]} e6 {[%emt 0:00:00]} 2. e4 {[%emt 0:02:53]} d5 {[%emt 0:00:00]} 3. Nd2 {[%emt 0:00:01]} Be7 {[%emt 0:00:00]} 4. c3 {[%emt 0:00:12]} Nf6 {[%emt 0:06:01]} 5. e5 {[%emt 0:01:22]} Nfd7 {[%emt 0:00:02]} 6. Bd3 {[%emt 0:04:10]} c5 {[%emt 0:00:04]} 7. Ne2 {[%emt 0:00:17]} b6 {[%emt 0:01:35]} 8. f4 {[%emt 0:02:02]} Ba6 {[%emt 0:01:12]} 9. Bxa6 {[%emt 0:03:02]} Nxa6 {[%emt 0:00:04]} 10. O-O {[%emt 0:25:24]} g6 {[%emt 0:03:25]} 11. g4 {[%emt 0:04:39]} Qc7 {[%emt 0:07:14]} 12. f5 {[%emt 0:00:43]} O-O-O {[%emt 0:00:31]} 13. f6 {[%emt 0:07:13]} Bf8 {[%emt 0:00:14]} 14. Nf3 {[%emt 0:00:02]} Ndb8 {[%emt 0:02:15]} 15. Nf4 {[%emt 0:04:10]} Kb7 {[%emt 0:03:15]} 16. h4 {[%emt 0:00:30]} h6 {[%emt 0:02:09]} 17. Be3 {[%emt 0:01:10]} Nc6 {[%emt 0:00:27]} 18. a3 {[%emt 0:10:55]} c4 {[%emt 0:01:21]} 19. Qc2 {[%emt 0:00:11]} Qd7 {[%emt 0:00:38]} 20. Nxg6 {[%emt 0:05:04]} fxg6 {[%emt 0:00:09]} 21. Qxg6 {[%emt 0:00:01]} Nc7 {[%emt 0:05:02]} 22. Rf2 {[%emt 0:01:17]} b5 {[%emt 0:01:25]} 23. g5 {[%emt 0:01:39]} hxg5 {[%emt 0:07:55]} 24. hxg5 {[%emt 0:00:09]} Ne7 {[%emt 0:00:05]} 25. Qf7 {[%emt 0:06:59]} Nf5 {[%emt 0:02:32]} 26. Qxd7 {[%emt 0:00:04]} Rxd7 {[%emt 0:00:02]} 27. Bf4 {[%emt 0:00:03]} Rdh7 {[%emt 0:02:29]} 28. Rh2 {[%emt 0:01:39]} Rxh2 {[%emt 0:01:47]} 29. Bxh2 {[%emt 0:00:02]} Kc6 {[%emt 0:02:48]} 30. Bf4 {[%emt 0:02:45]} a5 {[%emt 0:03:48]} 31. Kf2 {[%emt 0:01:32]} Rg8 {[%emt 0:00:52]} 32. Rg1 {[%emt 0:02:36]} b4 {[%emt 0:06:51]} 33. axb4 {[%emt 0:00:26]} axb4 {[%emt 0:00:02]} 34. Rh1 {[%emt 0:01:45]} bxc3 {[%emt 0:04:46]} 35. bxc3 {[%emt 0:00:01]} Nb5 {[%emt 0:00:06]} 36. Bd2 {[%emt 0:00:13]} Kd7 {[%emt 0:04:10]} 37. Rh7+ {[%emt 0:00:29]} Kc6 {[%emt 0:00:01]} 38. Nh4 {[%emt 0:02:08]} Nxh4 {[%emt 0:08:12]} 39. Rxh4 {[%emt 0:00:07]} Na3 {[%emt 0:02:35]} 40. Rh1 {[%emt 0:00:46]} Kb5 {[%emt 0:00:56]} 41. Rh7 {[%emt 0:00:22]} Kc6 {[%emt 0:00:52]} 42. Rf7 {[%emt 0:05:11]} Nb1 {[%emt 0:00:23]} 43. Be1 {[%emt 0:00:45]} Bb4 {[%emt 0:07:31]} 44. Rg7 {[%emt 0:00:19]} Ra8 {[%emt 0:00:35]} 45. cxb4 {[%emt 0:00:22]} c3 {[%emt 0:00:12]} 46. Bxc3 {[%emt 0:01:50]} Nxc3 {[%emt 0:00:02]} 47. g6 {[%emt 0:01:15]} Ra2+ {[%emt 0:00:27]} 48. Kf3 {[%emt 0:00:24]} Nd1 {[%emt 0:00:23]} 49. Re7 {[%emt 0:00:11]} 1-0

[Event "February Lviv Tradition-IM 2020"]
[Site "Lviv"]
[Date "2020.02.19"]
[Round "5.2"]
[White "Vakulenko, Oleksandr"]
[Black "Shkuran, Danylo"]
[Result "0-1"]
[ECO "A53"]
[WhiteElo "2262"]
[BlackElo "2329"]
[Annotator "NA"]
[PlyCount "76"]
[EventDate "2020.02.17"]
[EventType "tourn"]
[EventCountry "UKR"]
[SourceTitle "playchess.com"]
[Source "ChessBase"]
[SourceQuality "1"]
[TimeControl "5400+30"]

1. d4 {[%emt 0:00:00]} Nf6 {[%emt 0:00:20]} 2. c4 {[%emt 0:00:00]} d6 {[%emt 0:01:20]} 3. Nc3 {[%emt 0:01:35]} Nbd7 {[%emt 0:00:40]} 4. e4 {[%emt 0:01:18]} e5 {[%emt 0:00:55]} 5. Nge2 {[%emt 0:01:11]} Be7 {[%emt 0:00:49]} 6. f3 {[%emt 0:03:09]} O-O {[%emt 0:00:51]} 7. Be3 {[%emt 0:00:05]} c6 {[%emt 0:03:36]} 8. d5 {[%emt 0:00:13]} cxd5 {[%emt 0:04:24]} 9. cxd5 {[%emt 0:00:07]} a5 {[%emt 0:01:46]} 10. Nb5 {[%emt 0:05:08]} Ne8 {[%emt 0:02:57]} 11. Qd2 {[%emt 0:02:24]} Nc5 {[%emt 0:02:41]} 12. Nec3 {[%emt 0:11:29]} b6 {[%emt 0:03:38]} 13. Bc4 {[%emt 0:02:15]} h6 {[%emt 0:06:34]} 14. Bf2 {[%emt 0:06:31]} Bh4 {[%emt 0:10:02]} 15. g3 {[%emt 0:01:30]} Bg5 {[%emt 0:00:05]} 16. f4 {[%emt 0:00:54]} exf4 {[%emt 0:03:45]} 17. gxf4 {[%emt 0:00:10]} Bh4 {[%emt 0:00:55]} 18. O-O-O {[%emt 0:00:58]} Bxf2 {[%emt 0:04:30]} 19. Qxf2 {[%emt 0:00:07]} Ba6 {[%emt 0:01:06]} 20. Qd4 {[%emt 0:10:25]} Nd7 {[%emt 0:12:39]} 21. Rhg1 {[%emt 0:05:37]} f6 {[%emt 0:16:35]} 22. Rg6 {[%emt 0:04:55]} Rf7 {[%emt 0:00:41]} 23. Rdg1 {[%emt 0:00:44]} Kh8 {[%emt 0:00:32]} 24. Qd3 {[%emt 0:04:07]} Nf8 {[%emt 0:00:46]} 25. e5 {[%emt 0:03:31]} fxe5 {[%emt 0:13:25]} 26. fxe5 {[%emt 0:00:10]} dxe5 {[%emt 0:00:33]} 27. d6 {[%emt 0:02:43]} Bxb5 {[%emt 0:04:36]} 28. Bxb5 {[%emt 0:17:33]} Nxg6 {[%emt 0:00:13]} 29. Qxg6 {[%emt 0:00:27]} Qf6 {[%emt 0:01:52]} 30. Qg2 {[%emt 0:00:24]} Rd8 {[%emt 0:00:24]} 31. d7 {[%emt 0:02:34]} Nd6 {[%emt 0:00:30]} 32. Bc6 {[%emt 0:00:27]} Qf4+ {[%emt 0:01:21]} 33. Kb1 {[%emt 0:00:23]} Qf2 {[%emt 0:00:08]} 34. Qh1 {[%emt 0:00:56]} Nc4 {[%emt 0:00:25]} 35. Nd1 {[%emt 0:00:11]} Qf5+ {[%emt 0:00:46]} 36. Ka1 {[%emt 0:00:19]} Qf4 {[%emt 0:01:03]} 37. Kb1 {[%emt 0:01:13]} Nd2+ {[%emt 0:00:20]} 38. Kc2 {[%emt 0:01:33]} Nf3 {[%emt 0:00:06]} 0-1

[Event "February Lviv Tradition-IM 2020"]
[Site "Lviv"]
[Date "2020.02.19"]
[Round "5.3"]
[White "Bets, Anatolij"]
[Black "Sydoryka, Vladyslav"]
[Result "1/2-1/2"]
[ECO "A46"]
[WhiteElo "2249"]
[BlackElo "2318"]
[Annotator "NA"]
[PlyCount "60"]
[EventDate "2020.02.17"]
[EventType "tourn"]
[EventCountry "UKR"]
[SourceTitle "playchess.com"]
[Source "ChessBase"]
[SourceQuality "1"]
[TimeControl "5400+30"]

1. d4 {[%emt 0:00:00]} Nf6 {[%emt 0:00:00]} 2. Nf3 {[%emt 0:00:00]} c5 {[%emt 0:00:25]} 3. e3 {[%emt 0:00:48]} cxd4 {[%emt 0:04:49]} 4. exd4 {[%emt 0:00:30]} d5 {[%emt 0:00:16]} 5. c3 {[%emt 0:03:00]} Nc6 {[%emt 0:00:22]} 6. h3 {[%emt 0:01:13]} Bf5 {[%emt 0:02:04]} 7. Bd3 {[%emt 0:00:52]} Bxd3 {[%emt 0:00:22]} 8. Qxd3 {[%emt 0:00:01]} e6 {[%emt 0:00:15]} 9. Bf4 {[%emt 0:00:26]} Bd6 {[%emt 0:00:25]} 10. Bxd6 {[%emt 0:00:10]} Qxd6 {[%emt 0:00:07]} 11. Nbd2 {[%emt 0:01:55]} O-O {[%emt 0:00:26]} 12. O-O {[%emt 0:00:37]} Rae8 {[%emt 0:01:10]} 13. Rfe1 {[%emt 0:00:31]} Nd7 {[%emt 0:00:51]} 14. Rad1 {[%emt 0:09:43]} f6 {[%emt 0:04:25]} 15. c4 {[%emt 0:03:35]} dxc4 {[%emt 0:12:00]} 16. Nxc4 {[%emt 0:00:22]} Qd5 {[%emt 0:01:40]} 17. b3 {[%emt 0:00:29]} Nb6 {[%emt 0:01:01]} 18. Re2 {[%emt 0:27:19]} Rd8 {[%emt 0:04:25]} 19. Red2 {[%emt 0:03:02]} Rd7 {[%emt 0:02:57]} 20. Qe2 {[%emt 0:01:45]} Rfd8 {[%emt 0:06:57]} 21. Re1 {[%emt 0:01:03]} Re7 {[%emt 0:00:27]} 22. Red1 {[%emt 0:01:41]} Red7 {[%emt 0:00:36]} 23. Re1 {[%emt 0:00:25]} Re7 {[%emt 0:00:17]} 24. Red1 {[%emt 0:00:13]} Red7 {[%emt 0:00:15]} 25. Re1 {[%emt 0:00:13]} Re7 {[%emt 0:00:17]} 26. Red1 {[%emt 0:00:16]} Red7 {[%emt 0:00:13]} 27. Re1 {[%emt 0:00:16]} Re7 {[%emt 0:00:07]} 28. Red1 {[%emt 0:00:08]} Red7 {[%emt 0:00:03]} 29. Re1 {[%emt 0:00:04]} Re7 {[%emt 0:00:05]} 30. Red1 {[%emt 0:00:06]} Red7 {[%emt 0:00:07]} 1/2-1/2

[Event "February Lviv Tradition-IM 2020"]
[Site "Lviv"]
[Date "2020.02.19"]
[Round "5.4"]
[White "Malynovskyi, Rostyslav"]
[Black "Kagramanianz, Vartan"]
[Result "1-0"]
[ECO "A37"]
[WhiteElo "2238"]
[BlackElo "2238"]
[Annotator "NA"]
[PlyCount "65"]
[EventDate "2020.02.17"]
[EventType "tourn"]
[EventCountry "UKR"]
[SourceTitle "playchess.com"]
[Source "ChessBase"]
[SourceQuality "1"]
[TimeControl "5400+30"]

1. c4 {[%emt 0:00:00]} c5 {[%emt 0:00:00]} 2. g3 {[%emt 0:00:00]} Nc6 {[%emt 0:00:41]} 3. Bg2 {[%emt 0:00:00]} g6 {[%emt 0:01:22]} 4. Nc3 {[%emt 0:00:06]} Bg7 {[%emt 0:00:27]} 5. Nf3 {[%emt 0:01:04]} d6 {[%emt 0:03:31]} 6. O-O {[%emt 0:03:59]} e5 {[%emt 0:03:49]} 7. a3 {[%emt 0:05:37]} a5 {[%emt 0:04:15]} 8. d3 {[%emt 0:03:47]} Nge7 {[%emt 0:07:38]} 9. Ne1 {[%emt 0:00:18]} O-O {[%emt 0:03:42]} 10. Nc2 {[%emt 0:00:13]} Rb8 {[%emt 0:05:37]} 11. Rb1 {[%emt 0:11:46]} Be6 {[%emt 0:02:18]} 12. b4 {[%emt 0:05:05]} cxb4 {[%emt 0:06:15]} 13. axb4 {[%emt 0:00:10]} d5 {[%emt 0:02:26]} 14. b5 {[%emt 0:16:04]} Nd4 {[%emt 0:05:23]} 15. Ne3 {[%emt 0:00:30]} dxc4 {[%emt 0:03:51]} 16. dxc4 {[%emt 0:01:59]} Qc7 {[%emt 0:18:40]} 17. b6 {[%emt 0:12:10]} Qd7 {[%emt 0:03:33]} 18. Ba3 {[%emt 0:01:34]} Rfc8 {[%emt 0:00:28]} 19. Ne4 {[%emt 0:08:12]} Nef5 {[%emt 0:12:27]} 20. Nxf5 {[%emt 0:02:59]} Nxf5 {[%emt 0:01:33]} 21. Qxd7 {[%emt 0:01:32]} Bxd7 {[%emt 0:00:08]} 22. Nd6 {[%emt 0:00:14]} Nd4 {[%emt 0:09:44]} 23. Nxc8 {[%emt 0:02:22]} Nxe2+ {[%emt 0:00:07]} 24. Kh1 {[%emt 0:00:03]} Bxc8 {[%emt 0:00:18]} 25. Bd6 {[%emt 0:02:37]} Ra8 {[%emt 0:00:03]} 26. c5 {[%emt 0:00:29]} Nc3 {[%emt 0:00:15]} 27. Rb3 {[%emt 0:13:03]} e4 {[%emt 0:00:20]} 28. Rc1 {[%emt 0:02:41]} Ne2 {[%emt 0:00:28]} 29. Re1 {[%emt 0:00:28]} Nd4 {[%emt 0:00:55]} 30. Rxe4 {[%emt 0:01:21]} Bd7 {[%emt 0:02:39]} 31. Rxd4 {[%emt 0:01:09]} Bxd4 {[%emt 0:00:07]} 32. c6 {[%emt 0:02:03]} Bxc6 {[%emt 0:01:50]} 33. Bxc6 {[%emt 0:00:05]} 1-0

[Event "February Lviv Tradition-IM 2020"]
[Site "Lviv"]
[Date "2020.02.19"]
[Round "5.5"]
[White "Bognar, Csaba"]
[Black "Kryvoruchko, Vita"]
[Result "0-1"]
[ECO "A57"]
[WhiteElo "2128"]
[BlackElo "2146"]
[Annotator "NA"]
[PlyCount "72"]
[EventDate "2020.02.17"]
[EventType "tourn"]
[EventCountry "UKR"]
[SourceTitle "playchess.com"]
[Source "ChessBase"]
[SourceQuality "1"]
[TimeControl "5400+30"]

1. d4 Nf6 2. c4 c5 3. d5 b5 4. Qc2 d6 5. e4 b4 6. Bd3 g6 7. Ne2 Bg7 8. O-O O-O 9. f3 Nbd7 10. Ng3 Ne5 11. Be2 e6 12. Be3 a5 13. Nd2 h5 14. h3 exd5 15. cxd5 Ba6 16. f4 Ned7 17. Rae1 Re8 18. Nh1 Nxd5 19. exd5 Rxe3 20. Bxa6 Rxe1 21. Rxe1 Rxa6 22. Nf3 Ra8 23. f5 g5 24. g4 hxg4 25. hxg4 Ne5 26. Nxe5 Bxe5 27. Kg2 Qf6 28. Nf2 Bxb2 29. Re2 Be5 30. Re1 Kg7 31. Ne4 Rh8 32. Qc1 Rh2+ 33. Kf3 Qh6 34. Nxg5 Qh4 35. f6+ Bxf6 36. Ne4 Qh3+ {Qd1} 0-1

[Event "February Lviv Tradition-IM 2020"]
[Site "Lviv"]
[Date "2020.02.20"]
[Round "7.1"]
[White "Vakulenko, Oleksandr"]
[Black "Kowalski, Igor"]
[Result "1/2-1/2"]
[ECO "A40"]
[WhiteElo "2262"]
[BlackElo "2332"]
[Annotator "NA"]
[PlyCount "68"]
[EventDate "2020.02.17"]
[EventType "tourn"]
[EventCountry "UKR"]
[SourceTitle "playchess.com"]
[Source "ChessBase"]
[SourceQuality "1"]
[TimeControl "5400+30"]

1. d4 {[%emt 0:00:00]} e6 {[%emt 0:00:00]} 2. c4 {[%emt 0:00:06]} f5 {[%emt 0:00:00]} 3. Nf3 {[%emt 0:00:21]} Nf6 {[%emt 0:00:00]} 4. g3 {[%emt 0:00:14]} d5 {[%emt 0:00:00]} 5. Bg2 {[%emt 0:00:41]} Bd6 {[%emt 0:00:00]} 6. O-O {[%emt 0:01:15]} O-O {[%emt 0:00:00]} 7. Nc3 {[%emt 0:04:44]} c6 {[%emt 0:02:17]} 8. Qc2 {[%emt 0:00:14]} Ne4 {[%emt 0:02:40]} 9. c5 {[%emt 0:09:31]} Bc7 {[%emt 0:00:57]} 10. Bf4 {[%emt 0:00:08]} Nd7 {[%emt 0:02:36]} 11. b4 {[%emt 0:01:40]} Bxf4 {[%emt 0:06:20]} 12. gxf4 {[%emt 0:00:09]} Rf6 {[%emt 0:00:12]} 13. a4 {[%emt 0:12:06]} Rh6 {[%emt 0:01:12]} 14. Ra3 {[%emt 0:11:25]} Qc7 {[%emt 0:24:15]} 15. Nxe4 {[%emt 0:05:09]} fxe4 {[%emt 0:02:38]} 16. Ne5 {[%emt 0:00:15]} Nxe5 {[%emt 0:00:29]} 17. fxe5 {[%emt 0:04:34]} Qe7 {[%emt 0:00:34]} 18. f3 {[%emt 0:00:34]} Qh4 {[%emt 0:01:48]} 19. h3 {[%emt 0:00:01]} Qg3 {[%emt 0:00:20]} 20. Qc1 {[%emt 0:19:37]} Rxh3 {[%emt 0:04:25]} 21. fxe4 {[%emt 0:00:39]} Qxa3 {[%emt 0:00:05]} 22. Bxh3 {[%emt 0:00:11]} Qxc1 {[%emt 0:15:54]} 23. Rxc1 {[%emt 0:00:11]} dxe4 {[%emt 0:00:06]} 24. b5 {[%emt 0:05:36]} Kf7 {[%emt 0:04:27]} 25. bxc6 {[%emt 0:01:09]} bxc6 {[%emt 0:00:02]} 26. Rb1 {[%emt 0:00:01]} Ba6 {[%emt 0:00:56]} 27. Kf2 {[%emt 0:17:54]} Ke7 {[%emt 0:01:01]} 28. Ke3 {[%emt 0:00:53]} Rf8 {[%emt 0:00:32]} 29. Bg2 {[%emt 0:00:19]} g6 {[%emt 0:01:26]} 30. Bxe4 {[%emt 0:00:08]} Kd7 {[%emt 0:00:01]} 31. Rh1 {[%emt 0:00:45]} Rf7 {[%emt 0:00:01]} 32. Kd2 {[%emt 0:01:47]} Kc7 {[%emt 0:00:25]} 33. Rh2 {[%emt 0:00:48]} Bc4 34. Bc2 Bd5 1/2-1/2

[Event "February Lviv Tradition-IM 2020"]
[Site "Lviv"]
[Date "2020.02.20"]
[Round "7.2"]
[White "Bets, Anatolij"]
[Black "Roshka, Yevgeniy"]
[Result "0-1"]
[ECO "B06"]
[WhiteElo "2249"]
[BlackElo "2456"]
[Annotator "ChessBase"]
[PlyCount "88"]
[EventDate "2020.02.17"]
[EventType "tourn"]
[EventCountry "UKR"]
[SourceTitle "playchess.com"]
[Source "ChessBase"]
[SourceQuality "1"]
[TimeControl "5400+30"]

1. d4 {[%emt 0:01:49]} g6 {[%emt 0:01:25]} 2. e4 {[%emt 0:00:35]} Bg7 {[%emt 0:00:21]} 3. Nc3 {[%emt 0:00:28]} d6 {[%emt 0:01:30]} 4. f4 {[%emt 0:00:43]} a6 {[%emt 0:01:02]} 5. Nf3 {[%emt 0:05:07]} b5 {[%emt 0:03:47]} 6. Bd3 {[%emt 0:02:03]} Nd7 {[%emt 0:00:06]} 7. e5 {[%emt 0:03:53]} c5 {[%emt 0:00:09]} 8. Be4 {[%emt 0:00:20]} Rb8 {[%emt 0:00:11]} 9. O-O {[%emt 0:00:43]} cxd4 {[%emt 0:00:02]} 10. Nxd4 {[%emt 0:00:13]} dxe5 {[%emt 0:00:02]} 11. Nc6 {[%emt 0:00:39]} Qb6+ {[%emt 0:00:03]} 12. Kh1 {[%emt 0:00:17]} Ngf6 {[%emt 0:00:04]} 13. Nxb8 {[%emt 0:01:03]} Qxb8 {[%emt 0:00:02]} 14. fxe5 {[%emt 0:01:14]} Nxe4 {[%emt 0:00:16]} 15. Nxe4 {[%emt 0:00:04]} Nxe5 {[%emt 0:05:10]} 16. Bf4 {[%emt 0:00:51]} O-O {[%emt 0:01:07]} 17. Qe2 {[%emt 0:00:52]} Qa8 {[%emt 0:01:23]} 18. Rae1 {[%emt 0:00:54]} Be6 {[%emt 0:00:54]} 19. b3 {[%emt 0:00:22]} Nc6 {[%emt 0:06:01]} 20. Nc5 {[%emt 0:01:14]} Bf5 {[%emt 0:00:13]} 21. h3 {[%emt 0:05:22]} Rc8 {[%emt 0:06:53]} 22. Kh2 {[%emt 0:01:11]} Nb4 {[%emt 0:05:46]} 23. Be3 {[%emt 0:01:03]} Be5+ {[%emt 0:02:07]} 24. Kh1 {[%emt 0:03:51]} Bd6 {[%emt 0:03:09]} 25. c4 {[%emt 0:05:57]} bxc4 {[%emt 0:14:12]} 26. Qxc4 {[%emt 0:00:58]} Nd5 {[%emt 0:01:05]} 27. Bg1 {[%emt 0:01:48]} Bxh3 {[%emt 0:00:46]} 28. Qe4 {[%emt 0:02:45]} Bxc5 {[%emt 0:00:35]} 29. Bxc5 {[%emt 0:02:13]} Rxc5 {[%emt 0:00:21]} 30. gxh3 {[%emt 0:01:12]} Rc3 {[%emt 0:03:21]} 31. Rf3 {[%emt 0:11:09]} Qc6 {[%emt 0:01:51]} 32. Rxc3 {[%emt 0:03:46]} Qxc3 {[%emt 0:00:03]} 33. Kh2 {[%emt 0:00:36]} Nf4 {[%emt 0:03:48]} 34. Re3 {[%emt 0:00:22]} Qd2+ {[%emt 0:00:16]} 35. Kh1 {[%emt 0:01:27]} e5 {[%emt 0:00:46]} 36. a4 {[%emt 0:01:16]} f5 {[%emt 0:02:17]} 37. Qf3 {[%emt 0:02:03]} Kg7 {[%emt 0:00:59]} 38. b4 {[%emt 0:01:32]} Qxb4 {[%emt 0:00:28]} 39. Rb3 {[%emt 0:01:36]} Qe1+ {[%emt 0:00:02]} 40. Kh2 {[%emt 0:00:15]} Qd2+ {[%emt 0:00:02]} 41. Kh1 {[%emt 0:00:27]} Kh6 {[%emt 0:00:11]} 42. Rb7 {[%emt 0:00:15]} e4 {[%emt 0:00:35]} 43. Qg3 {[%emt 0:00:11]} Nh5 {[%emt 0:00:34]} 44. Qa3 {[%emt 0:01:53]} Qe1+ {[%emt 0:00:17]} 0-1

[Event "February Lviv Tradition-IM 2020"]
[Site "Lviv"]
[Date "2020.02.20"]
[Round "7.4"]
[White "Bognar, Csaba"]
[Black "Sydoryka, Vladyslav"]
[Result "0-1"]
[ECO "A57"]
[WhiteElo "2128"]
[BlackElo "2318"]
[Annotator "NA"]
[PlyCount "58"]
[EventDate "2020.02.17"]
[EventType "tourn"]
[EventCountry "UKR"]
[SourceTitle "playchess.com"]
[Source "ChessBase"]
[SourceQuality "1"]
[TimeControl "5400+30"]

1. d4 {[%emt 0:00:00]} Nf6 {[%emt 0:00:00]} 2. c4 {[%emt 0:00:00]} c5 {[%emt 0:00:00]} 3. d5 {[%emt 0:00:00]} b5 {[%emt 0:00:00]} 4. Qc2 {[%emt 0:00:00]} bxc4 {[%emt 0:00:01]} 5. e4 {[%emt 0:00:08]} d6 {[%emt 0:00:39]} 6. Nf3 {[%emt 0:00:12]} g6 {[%emt 0:00:04]} 7. Nfd2 {[%emt 0:00:22]} e6 {[%emt 0:00:07]} 8. Nc3 {[%emt 0:00:27]} exd5 {[%emt 0:01:36]} 9. Nxd5 {[%emt 0:17:09]} Nxd5 {[%emt 0:00:35]} 10. exd5 {[%emt 0:00:11]} Bg7 {[%emt 0:00:04]} 11. Qe4+ {[%emt 0:06:17]} Qe7 {[%emt 0:00:21]} 12. Qxe7+ {[%emt 0:01:17]} Kxe7 {[%emt 0:00:04]} 13. Nxc4 {[%emt 0:01:14]} Bb7 {[%emt 0:02:23]} 14. Bf4 {[%emt 0:01:27]} Bxd5 {[%emt 0:01:30]} 15. O-O-O {[%emt 0:06:05]} Bd4 {[%emt 0:01:13]} 16. Bxd6+ {[%emt 0:00:56]} Ke6 {[%emt 0:00:19]} 17. Bxb8 {[%emt 0:17:36]} Rhxb8 {[%emt 0:02:00]} 18. f3 {[%emt 0:00:06]} Rb4 {[%emt 0:00:30]} 19. b3 {[%emt 0:01:32]} a5 {[%emt 0:01:00]} 20. Re1+ {[%emt 0:12:56]} Kf6 {[%emt 0:12:45]} 21. Ne3 {[%emt 0:18:36]} Bxe3+ {[%emt 0:02:28]} 22. Rxe3 {[%emt 0:00:06]} a4 {[%emt 0:00:11]} 23. bxa4 {[%emt 0:08:25]} Rbxa4 24. Rc3 {[%emt 0:02:42]} Rxa2 {[%emt 0:02:15]} 25. Rxc5 {[%emt 0:02:13]} Rf2 {[%emt 0:05:42]} 26. Kb1 {[%emt 0:00:06]} Ba2+ {[%emt 0:00:04]} 27. Kc1 {[%emt 0:00:10]} Bc4 {[%emt 0:00:05]} 28. Rc6+ {[%emt 0:01:11]} Kg7 {[%emt 0:00:06]} 29. Kb1 {[%emt 0:00:40]} Bxf1 {[%emt 0:00:16]} 0-1

[Event "February Lviv Tradition-IM 2020"]
[Site "Lviv"]
[Date "2020.02.21"]
[Round "8.1"]
[White "Kowalski, Igor"]
[Black "Kagramanianz, Vartan"]
[Result "1-0"]
[ECO "B40"]
[WhiteElo "2332"]
[BlackElo "2238"]
[Annotator "ChessBase"]
[PlyCount "71"]
[EventDate "2020.02.17"]
[EventType "tourn"]
[EventCountry "UKR"]
[SourceTitle "playchess.com"]
[Source "ChessBase"]
[SourceQuality "1"]
[TimeControl "5400+30"]

1. Nf3 {[%emt 0:00:00]} c5 {[%emt 0:00:00]} 2. e4 {[%emt 0:00:16]} e6 {[%emt 0:00:03]} 3. b3 {[%emt 0:00:09]} Nc6 {[%emt 0:00:31]} 4. Bb2 {[%emt 0:00:03]} d6 {[%emt 0:00:16]} 5. g3 {[%emt 0:01:27]} Nf6 {[%emt 0:03:23]} 6. d3 {[%emt 0:00:04]} Be7 {[%emt 0:00:35]} 7. Bg2 {[%emt 0:00:03]} O-O {[%emt 0:00:33]} 8. O-O {[%emt 0:00:04]} Qc7 {[%emt 0:00:33]} 9. Nbd2 {[%emt 0:00:31]} b6 {[%emt 0:04:01]} 10. Re1 {[%emt 0:03:56]} Bb7 {[%emt 0:00:34]} 11. h4 {[%emt 0:00:10]} Nd7 {[%emt 0:01:03]} 12. Nc4 {[%emt 0:03:04]} b5 {[%emt 0:06:49]} 13. Ne3 {[%emt 0:00:11]} Bf6 {[%emt 0:00:17]} 14. Qc1 {[%emt 0:03:44]} Bxb2 {[%emt 0:03:17]} 15. Qxb2 {[%emt 0:00:02]} Nf6 {[%emt 0:02:51]} 16. Nh2 {[%emt 0:02:36]} b4 {[%emt 0:05:01]} 17. a4 {[%emt 0:06:50]} Nd4 {[%emt 0:04:26]} 18. Nf3 {[%emt 0:05:18]} e5 {[%emt 0:07:30]} 19. Qc1 {[%emt 0:02:16]} Rfe8 {[%emt 0:08:00]} 20. Qd2 {[%emt 0:05:05]} Nxf3+ {[%emt 0:01:58]} 21. Bxf3 {[%emt 0:00:18]} Bc8 {[%emt 0:00:22]} 22. g4 {[%emt 0:04:40]} Nd7 {[%emt 0:04:48]} 23. h5 {[%emt 0:02:16]} Nf8 {[%emt 0:03:52]} 24. h6 {[%emt 0:04:46]} Ng6 {[%emt 0:02:09]} 25. hxg7 {[%emt 0:04:58]} Rb8 {[%emt 0:09:19]} 26. Nd5 {[%emt 0:09:48]} Qd8 {[%emt 0:02:37]} 27. Kg2 {[%emt 0:04:33]} Be6 {[%emt 0:03:29]} 28. Rh1 {[%emt 0:01:16]} Nf4+ {[%emt 0:04:32]} 29. Nxf4 {[%emt 0:00:19]} Qg5 {[%emt 0:00:33]} 30. Kg3 {[%emt 0:01:41]} Qxf4+ {[%emt 0:00:50]} 31. Qxf4 {[%emt 0:00:02]} exf4+ {[%emt 0:00:12]} 32. Kxf4 {[%emt 0:00:03]} Kxg7 {[%emt 0:00:08]} 33. g5 {[%emt 0:00:35]} Rh8 {[%emt 0:04:20]} 34. Rh6 {[%emt 0:00:04]} Rbf8 {[%emt 0:00:46]} 35. Rah1 {[%emt 0:01:38]} f6 {[%emt 0:01:12]} 36. Ke3 {[%emt 0:00:12]} 1-0